bitfinex/quotes_SOLUSD_20260304
["timestamp","ask_amount","ask_price","bid_price","bid_amount"]
[1772635888115,0.28432314,90.069,90.024,4.49999999]
[1772635888525,0.28432314,90.069,90.008,44.44032173]
[1772635888526,0.28432314,90.069,90.026,4.49999999]
[1772635888728,0.28432314,90.077,90.026,4.49999999]
[1772635889127,9.6832921,90.09,90.026,4.49999999]
[1772635889316,11.09804008,90.106,90.029,4.78432313]
[1772635889527,9.6832921,90.11,90.029,4.78432313]
[1772635889528,9.6832921,90.12,90.029,4.78432313]
[1772635889832,9.6832921,90.13,90.032,8.19383401]
[1772635890036,38.81255752,90.177,90.053,4.49999999]
[1772635890340,9.6832921,90.17,90.071,4.49999999]
[1772635890639,9.6832921,90.15,90.083,4.49999999]
[1772635890938,38.82030633,90.159,90.083,4.49999999]
[1772635891137,38.82030633,90.159,90.082,38.85348903]
[1772635891138,9.6832921,90.18,90.088,4.78432313]
[1772635891435,11.08782667,90.189,90.088,4.78432313]
[1772635891642,38.80739335,90.189,90.088,4.78432313]
[1772635891838,11.08782667,90.189,90.088,4.78432313]
[1772635892045,11.08782667,90.189,90.094,5.10909883]
[1772635892229,11.08782667,90.189,90.105,4.78432313]
[1772635892724,44.33519137,90.222,90.093,4.82477569]
[1772635892725,11.08514241,90.211,90.114,4.78432313]
[1772635893068,11.08514241,90.211,90.106,284.21342701]
[1772635893069,9.6832921,90.22,90.136,4.49999999]
[1772635893234,11.07861384,90.264,90.129,0.14216157]
[1772635893235,11.07861384,90.264,90.145,4.78432313]
[1772635893439,9.6832921,90.26,90.159,0.28432314]
[1772635893755,9.6832921,90.24,90.166,0.28432314]
[1772635893926,9.6832921,90.22,90.172,4.49999999]
[1772635894243,9.6832921,90.18,90.159,12.31144493]
[1772635894631,11.08905621,90.179,90.159,12.31144493]
[1772635895029,9.66308316,90.19,90.159,12.31144493]
[1772635895228,39.09171649,90.189,90.159,12.31144493]
[1772635895434,0.28432314,90.179,90.159,12.31144493]
[1772635895837,0.28432314,90.188,90.159,12.31144493]
[1772635896239,0.14216157,90.209,90.161,4.49999999]
[1772635896431,0.14216157,90.199,90.161,4.49999999]
[1772635896623,0.14216157,90.199,90.159,12.31144493]
[1772635896624,38.94525251,90.199,90.159,12.31144493]
[1772635896824,38.94525251,90.199,90.07,62.4]
[1772635896825,0.28432314,90.169,90.096,4.49999999]
[1772635897045,3.69383402,90.182,90.096,4.49999999]
[1772635897225,0.28432314,90.139,90.096,4.49999999]
[1772635897430,0.28432314,90.129,90.095,8.96955594]
[1772635897646,9.66308316,90.14,90.096,4.49999999]
[1772635897942,0.28432314,90.139,90.096,4.49999999]
[1772635898544,9.66308316,90.13,90.096,4.49999999]
[1772635898736,3.69383402,90.163,90.096,4.49999999]
[1772635898737,11.09456509,90.135,90.096,15.59921736]
[1772635898945,11.09293964,90.148,90.097,4.49999999]
[1772635899144,0.28432314,90.159,90.097,4.49999999]
[1772635899529,0.28432314,90.149,90.097,4.49999999]
[1772635900324,0.28432314,90.159,90.097,4.49999999]
[1772635900644,0.28432314,90.147,90.099,4.49999999]
[1772635900848,0.28432314,90.139,90.098,11.0990255]
[1772635901142,0.28432314,90.147,90.099,4.49999999]
[1772635901325,0.28432314,90.139,90.099,4.49999999]
[1772635901526,38.82504325,90.148,90.095,8.96955594]
[1772635901527,0.28432314,90.129,90.095,8.96955594]
[1772635901754,38.82504325,90.148,90.097,4.49999999]
[1772635901927,0.28432314,90.139,90.097,4.49999999]
[1772635902128,0.28432314,90.129,90.095,8.96955594]
[1772635902346,0.28432314,90.129,90.095,20.06882823]
[1772635902736,0.28432314,90.127,90.095,20.06882823]
[1772635903445,9.66308316,90.14,90.096,4.49999999]
[1772635903634,0.28432314,90.139,90.096,4.49999999]
[1772635903834,9.66308316,90.15,90.096,4.49999999]
[1772635904030,3.69383402,90.173,90.095,13.46955593]
[1772635904031,0.28432314,90.129,90.095,13.46955593]
[1772635904235,0.28432314,90.139,90.097,4.49999999]
[1772635904642,3.69383402,90.173,90.096,38.84745159]
[1772635904643,9.66308316,90.14,90.098,15.59902549]
[1772635904842,9.66308316,90.14,90.099,4.49999999]
[1772635905043,9.66308316,90.17,90.099,4.49999999]
[1772635905245,9.66308316,90.17,90.102,4.49999999]
[1772635905456,9.66308316,90.19,90.111,0.28432314]
[1772635905640,9.66308316,90.19,90.112,4.49999999]
[1772635905835,9.66308316,90.2,90.121,4.49999999]
[1772635906144,9.66308316,90.2,90.121,4.78432313]
[1772635906145,0.28432314,90.199,90.121,4.78432313]
[1772635906535,9.66308316,90.2,90.121,4.78432313]
[1772635906736,38.79405895,90.22,90.128,4.49999999]
[1772635906737,27.71004211,90.22,90.128,4.49999999]
[1772635906932,27.71004211,90.22,90.125,3.69383402]
[1772635906933,38.79448896,90.219,90.131,4.78432313]
[1772635907141,9.66308316,90.24,90.131,4.78432313]
[1772635907455,11.0791048,90.26,90.122,271.85370938]
[1772635907456,9.66308316,90.23,90.151,4.49999999]
[1772635907637,9.66308316,90.24,90.165,4.49999999]
[1772635907836,9.66308316,90.25,90.168,4.78432313]
[1772635908034,0.28432314,90.239,90.168,4.78432313]
[1772635908254,0.28432314,90.239,90.137,4.82477569]
[1772635908255,9.66308316,90.24,90.172,4.49999999]
[1772635908456,44.30471155,90.284,90.137,4.82477569]
[1772635908457,9.66308316,90.28,90.183,4.78432313]
[1772635908657,9.86308316,90.29,90.196,4.78432313]
[1772635908965,9.86308316,90.29,90.167,11.05580701]
[1772635908966,0.2,90.29,90.212,4.49999999]
[1772635909159,0.2,90.29,90.226,4.78432313]
[1772635909541,0.2,90.29,90.209,3.69383402]
[1772635909542,27.67408173,90.338,90.231,4.49999999]
[1772635909857,20.93367577,90.33,90.234,4.78432313]
[1772635910154,9.86308316,90.33,90.234,4.78432313]
[1772635910551,11.07173618,90.321,90.234,4.78432313]
[1772635910755,0.2,90.33,90.243,4.49999999]
[1772635911059,11.06708869,90.358,90.256,3.69383402]
[1772635911246,9.66308316,90.34,90.274,4.44884788]
[1772635911446,9.66308316,90.32,90.274,4.44884788]
[1772635911956,0.198,90.325,90.274,4.44884788]
[1772635912159,9.66308316,90.32,90.274,4.44884788]
[1772635912362,9.66308316,90.32,90.247,3.69383402]
[1772635912363,0.14216157,90.354,90.275,4.44884788]
[1772635912570,0.198,90.355,90.275,4.44884788]
[1772635912571,9.66308316,90.35,90.275,4.44884788]
[1772635912867,0.280974,90.359,90.288,4.73317102]
[1772635913073,0.2,90.37,90.298,0.28432314]
[1772635913246,0.2,90.37,90.312,4.44884788]
[1772635913647,9.86308316,90.37,90.312,4.44884788]
[1772635913968,9.86308316,90.37,90.285,3.69383402]
[1772635913969,0.28432314,90.349,90.286,4.44884788]
[1772635914143,9.66308316,90.33,90.286,4.44884788]
[1772635914344,0.28432314,90.329,90.286,4.44884788]
[1772635914857,0.28432314,90.327,90.287,11.07579164]
[1772635915160,9.66308316,90.34,90.288,4.44884788]
[1772635915347,9.86108316,90.35,90.288,4.44884788]
[1772635915550,11.06819112,90.349,90.288,4.44884788]
[1772635915945,0.198,90.329,90.272,4.44884788]
[1772635916143,9.66308316,90.3,90.256,4.44884788]
[1772635916346,0.28432314,90.309,90.256,4.44884788]
[1772635916765,3.69383402,90.342,90.256,4.44884788]
[1772635916766,0.28432314,90.329,90.256,4.44884788]
[1772635916953,3.69383402,90.342,90.239,138.52103856]
[1772635916954,0.28432314,90.327,90.261,4.44884788]
[1772635917270,0.28432314,90.327,90.26,3.69383402]
[1772635917271,0.28432314,90.345,90.271,4.44884788]
[1772635917451,0.28432314,90.347,90.271,4.44884788]
[1772635917649,0.34016157,90.347,90.271,4.44884788]
[1772635917856,0.14216157,90.347,90.271,4.44884788]
[1772635918064,0.14216157,90.347,90.281,4.44884788]
[1772635918264,11.06676918,90.361,90.291,4.44884788]
[1772635918564,11.06676918,90.361,90.26,3.69383402]
[1772635918565,11.06623139,90.365,90.296,4.73317102]
[1772635919064,11.06623139,90.365,90.25,13.63238824]
[1772635919065,0.198,90.329,90.258,5.55678291]
[1772635919263,3.69383402,90.362,90.271,4.44884788]
[1772635919264,0.28432314,90.319,90.271,4.44884788]
[1772635919852,0.28432314,90.329,90.271,4.44884788]
[1772635920064,9.66308316,90.32,90.271,4.44884788]
[1772635920269,0.28432314,90.329,90.271,4.44884788]
[1772635920770,9.66308316,90.32,90.271,4.44884788]
[1772635921072,9.66308316,90.32,90.243,88.64946878]
[1772635921073,0.28432314,90.289,90.244,15.52991698]
[1772635921455,0.28432314,90.289,90.245,4.44884788]
[1772635921649,0.198,90.297,90.245,4.44884788]
[1772635921650,0.28432314,90.296,90.245,4.44884788]
[1772635922056,0.28432314,90.299,90.245,4.44884788]
[1772635922267,0.28432314,90.289,90.245,4.44884788]
[1772635922661,0.48232314,90.279,90.238,11.08170484]
[1772635922971,0.28432314,90.279,90.233,4.44884788]
[1772635923151,0.28432314,90.289,90.239,4.44884788]
[1772635923354,11.35996386,90.289,90.239,4.44884788]
[1772635923561,0.28432314,90.269,90.232,11.08254277]
[1772635923964,0.28432314,90.259,90.211,4.44884788]
[1772635924156,0.28432314,90.239,90.196,4.44884788]
[1772635924659,47.90163747,90.37,90.177,0.14216157]
[1772635924660,0.28432314,90.261,90.177,0.14216157]
[1772635924852,0.28432314,90.243,90.176,38.81298793]
[1772635925054,0.28432314,90.241,90.166,44.36246539]
[1772635925282,0.28432314,90.241,90.17,0.28432314]
[1772635925583,9.66308316,90.22,90.15,38.82418191]
[1772635925752,0.14216157,90.198,90.15,11.0926234]
[1772635925955,0.14216157,90.219,90.15,38.82418191]
[1772635926160,0.14216157,90.229,90.153,3.69383402]
[1772635926668,38.78460139,90.242,90.153,3.69383402]
[1772635926669,11.36477832,90.249,90.159,4.73317102]
[1772635926874,4.6131384,90.229,90.159,4.44884788]
[1772635927080,4.6131384,90.209,90.161,4.44884788]
[1772635927259,4.32881526,90.191,90.148,11.0928695]
[1772635927571,0.28432314,90.189,90.148,11.0928695]
[1772635927773,9.66308316,90.21,90.149,4.44884788]
[1772635927972,0.28432314,90.199,90.149,4.44884788]
[1772635928559,0.28432314,90.202,90.149,4.44884788]
[1772635928757,0.14216157,90.2,90.149,4.44884788]
[1772635928964,0.14216157,90.199,90.15,43.27302979]
[1772635929164,0.14216157,90.209,90.151,4.44884788]
[1772635929778,0.14216157,90.209,90.15,83.19467553]
[1772635929779,4.6131384,90.199,90.15,11.0926234]
[1772635929977,4.6131384,90.199,90.112,44.38919547]
[1772635929978,9.66308316,90.19,90.125,4.44884788]
[1772635930286,9.66308316,90.22,90.131,4.44884788]
[1772635930580,4.32881526,90.229,90.146,4.73317102]
[1772635930772,4.6131384,90.218,90.146,4.73317102]
[1772635930957,4.32881526,90.233,90.155,0.28432314]
[1772635931166,11.08292642,90.229,90.162,4.44884788]
[1772635931368,0.28432314,90.228,90.162,4.44884788]
[1772635931870,4.6131384,90.228,90.162,4.44884788]
[1772635932365,1e-08,90.263,90.177,4.73317102]
[1772635932565,11.07885932,90.262,90.177,4.73317102]
[1772635932774,4.32881526,90.261,90.177,4.73317102]
[1772635932966,1e-08,90.263,90.177,4.73317102]
[1772635932967,4.32881526,90.258,90.186,4.44884788]
[1772635933379,0.28432314,90.257,90.186,4.44884788]
[1772635933678,11.07922755,90.259,90.186,4.44884788]
[1772635933679,0.28432314,90.229,90.186,4.44884788]
[1772635933975,4.6131384,90.229,90.178,38.81212711]
[1772635934166,38.77729644,90.259,90.179,4.44884788]
[1772635934167,4.32881526,90.244,90.179,4.44884788]
[1772635934367,3.69383402,90.256,90.179,4.44884788]
[1772635934368,4.6131384,90.243,90.179,4.44884788]
[1772635934768,0.28432314,90.239,90.179,4.44884788]
[1772635934986,11.0820515,90.236,90.181,4.44884788]
[1772635935189,4.6131384,90.237,90.181,4.44884788]
[1772635935483,31.39236043,90.258,90.181,4.44884788]
[1772635935484,0.14216157,90.248,90.181,4.44884788]
[1772635935889,4.32881526,90.277,90.188,4.73317102]
[1772635936064,9.66308316,90.29,90.188,4.73317102]
[1772635936267,9.66308316,90.28,90.202,4.44884788]
[1772635936474,11.07698105,90.278,90.207,4.73317102]
[1772635936883,11.07831675,90.267,90.207,4.44884788]
[1772635937074,4.32881526,90.278,90.212,4.44884788]
[1772635937276,9.66308316,90.29,90.213,0.28432314]
[1772635937473,11.07474483,90.296,90.221,4.73317102]
[1772635937987,4.6131384,90.294,90.221,4.73317102]
[1772635938186,4.32881526,90.294,90.221,4.73317102]
[1772635938386,4.05025698,90.279,90.211,3.69383402]
[1772635938688,0.28432314,90.279,90.212,4.14534857]
[1772635938885,4.33458012,90.279,90.212,4.14534857]
[1772635939184,4.05025698,90.237,90.204,12.04551611]
[1772635939385,0.28432314,90.219,90.165,4.14534857]
[1772635939587,9.66308316,90.24,90.167,4.14534857]
[1772635939785,0.28432314,90.229,90.167,4.14534857]
[1772635939979,9.66308316,90.23,90.167,4.14534857]
[1772635939980,0.28432314,90.227,90.167,4.14534857]
[1772635940176,0.28432314,90.219,90.167,4.14534857]
[1772635940575,3.92996029,90.227,90.167,4.14534857]
[1772635940787,9.66308316,90.24,90.17,4.28751014]
[1772635940963,0.14216157,90.249,90.17,4.28751014]
[1772635941166,9.66308316,90.24,90.181,4.14534857]
[1772635941482,0.14216157,90.246,90.181,4.14534857]
[1772635941671,11.07863951,90.264,90.191,4.14534857]
[1772635941983,0.28432314,90.263,90.191,4.14534857]
[1772635942185,0.28432314,90.259,90.191,4.14534857]
[1772635942570,0.28432314,90.263,90.191,4.14534857]
[1772635942965,3.92996029,90.281,90.194,0.14216157]
[1772635942966,11.07805104,90.269,90.194,0.14216157]
[1772635943174,9.66308316,90.29,90.2,4.56091735]
[1772635943672,9.66308316,90.28,90.2,4.56091735]
[1772635943876,3.92996029,90.276,90.2,4.56091735]
[1772635944587,4.21428343,90.269,90.2,4.56091735]
[1772635944787,38.76269478,90.293,90.2,4.56091735]
[1772635944788,9.66308316,90.29,90.2,4.56091735]
[1772635945093,44.27110523,90.353,90.199,3.69383402]
[1772635945094,9.66308316,90.28,90.205,4.56091735]
[1772635945283,0.28432314,90.269,90.205,4.27659421]
[1772635945609,4.21428343,90.269,90.205,4.27659421]
[1772635945889,9.66308316,90.27,90.203,0.28432314]
[1772635946072,0.28432314,90.279,90.205,4.56091735]
[1772635946470,3.92996029,90.276,90.205,4.27659421]
[1772635946672,4.21428343,90.287,90.211,4.27659421]
[1772635946878,3.92996029,90.287,90.221,4.27659421]
[1772635947078,3.69383402,90.313,90.22,0.28432314]
[1772635947079,3.92996029,90.301,90.226,4.27659421]
[1772635947292,11.07432863,90.299,90.232,4.27659421]
[1772635947485,3.92996029,90.316,90.241,4.27659421]
[1772635947799,9.66308316,90.31,90.241,4.27659421]
[1772635948105,15.0022075,90.316,90.251,4.27659421]
[1772635948282,9.66308316,90.34,90.259,4.27659421]
[1772635948481,3.92996029,90.338,90.261,4.27659421]
[1772635949090,3.92996029,90.338,90.232,3.69383402]
[1772635949091,3.92996029,90.338,90.27,0.28432314]
[1772635949400,0.28432314,90.341,90.271,4.27659421]
[1772635949793,3.92996029,90.348,90.271,4.27659421]
[1772635950189,3.92996029,90.339,90.271,4.27659421]
[1772635950485,9.66308316,90.31,90.253,38.77987435]
[1772635950698,0.28432314,90.309,90.254,4.27659421]
[1772635950879,4.21428343,90.309,90.254,4.27659421]
[1772635951078,4.21428343,90.309,90.24,88.65195512]
[1772635951079,9.66308316,90.29,90.24,38.78546098]
[1772635951279,0.28432314,90.279,90.24,11.08156028]
[1772635951478,3.92996029,90.269,90.24,11.08156028]
[1772635951693,0.28432314,90.279,90.24,43.06205519]
[1772635951884,3.92996029,90.299,90.241,4.27659421]
[1772635952081,0.28432314,90.298,90.241,4.27659421]
[1772635952282,9.66308316,90.33,90.246,4.27659421]
[1772635952490,44.25509489,90.386,90.262,4.27659421]
[1772635952491,11.0694163,90.339,90.262,4.27659421]
[1772635952693,11.0694163,90.339,90.272,4.27659421]
[1772635952888,3.92996029,90.338,90.272,4.27659421]
[1772635953091,9.66308316,90.32,90.273,11.07750933]
[1772635953281,0.14216157,90.318,90.273,11.07750933]
[1772635953490,14.99991666,90.335,90.274,4.27659421]
[1772635953882,3.92996029,90.335,90.274,4.27659421]
[1772635954197,3.92996029,90.347,90.277,4.27659421]
[1772635954380,11.06831363,90.348,90.277,4.27659421]
[1772635954381,0.14216157,90.338,90.277,4.27659421]
[1772635954580,0.14216157,90.347,90.281,4.27659421]
[1772635954793,0.28432314,90.347,90.281,4.27659421]
[1772635954996,11.06831363,90.348,90.281,4.27659421]
[1772635955297,11.06782362,90.352,90.283,4.27659421]
[1772635955498,6.82215526,90.439,90.282,38.76741764]
[1772635955499,30.83549542,90.366,90.286,4.56091735]
[1772635955686,11.0671112,90.358,90.286,4.56091735]
[1772635955886,30.83549542,90.366,90.286,4.56091735]
[1772635956198,3.92996029,90.359,90.286,4.56091735]
[1772635956402,14.99619168,90.365,90.286,4.56091735]
[1772635956603,3.92996029,90.345,90.286,4.27659421]
[1772635956897,4.21428343,90.364,90.289,0.14216157]
[1772635957098,0.14216157,90.359,90.292,4.27659421]
[1772635957300,0.14216157,90.359,90.285,3.69383402]
[1772635957301,11.06696621,90.359,90.299,0.28432314]
[1772635957602,26.90553513,90.366,90.312,4.27659421]
[1772635957991,11.06623139,90.365,90.312,4.27659421]
[1772635958198,26.90553513,90.366,90.297,4.56091735]
[1772635958901,26.90553513,90.366,90.293,11.07505565]
[1772635958902,9.62356528,90.34,90.293,11.07505565]
[1772635959100,0.28432314,90.329,90.28,11.07665042]
[1772635959318,0.28432314,90.319,90.28,11.07665042]
[1772635959493,0.28432314,90.319,90.28,38.76827647]
[1772635959687,0.28432314,90.319,90.28,11.07665042]
[1772635959885,0.28432314,90.327,90.28,11.07665042]
[1772635960287,9.62356528,90.33,90.281,4.27659421]
[1772635960488,11.06994376,90.335,90.281,4.27659421]
[1772635960788,11.06833688,90.348,90.284,4.27659421]
[1772635960991,4.21428343,90.347,90.284,4.27659421]
[1772635961195,4.21428343,90.337,90.285,11.07603699]
[1772635961398,11.06782362,90.352,90.286,4.27659421]
[1772635961906,0.28432314,90.35,90.286,4.27659421]
[1772635962108,11.06659879,90.362,90.289,4.56091735]
[1772635962306,14.99619168,90.365,90.289,4.56091735]
[1772635962498,3.92996029,90.365,90.289,4.56091735]
[1772635962697,1e-08,90.366,90.307,0.28432314]
[1772635963009,1e-08,90.366,90.312,4.27659421]
[1772635963310,1e-08,90.366,90.317,4.27659421]
[1772635963983,0.28432314,90.365,90.317,4.27659421]
[1772635964182,3.9299603,90.366,90.317,4.27659421]
[1772635964588,27.66115028,90.38,90.313,38.75411069]
[1772635964589,3.92996029,90.417,90.323,0.28432314]
[1772635964790,3.92996029,90.443,90.327,3.69383402]
[1772635964996,3.92996029,90.429,90.336,0.28432314]
[1772635965396,3.92996029,90.429,90.325,4.27659421]
[1772635965397,38.70910659,90.418,90.34,3.69383402]
[1772635965606,0.28432314,90.409,90.34,3.69383402]
[1772635965911,38.70910659,90.418,90.34,3.69383402]
[1772635965912,11.05974474,90.418,90.341,0.28432314]
[1772635966289,11.05974474,90.418,90.345,0.28432314]
[1772635966513,11.05974474,90.418,90.345,3.97815716]
[1772635966892,3.92996029,90.417,90.347,0.28432314]
[1772635967094,3.92996029,90.417,90.347,4.27659421]
[1772635967294,3.69383402,90.443,90.346,3.69383402]
[1772635967295,11.0583994,90.429,90.361,4.27659421]
[1772635967493,14.98835969,90.429,90.361,4.27659421]
[1772635968309,3.92996029,90.428,90.361,4.27659421]
[1772635968519,0.14216157,90.427,90.361,4.27659421]
[1772635968801,0.14216157,90.427,90.352,182.76125133]
[1772635968802,0.28432314,90.408,90.353,4.22940589]
[1772635969314,0.14216157,90.426,90.361,4.22940589]
[1772635969688,0.14216157,90.426,90.307,44.29292866]
[1772635969689,9.62356528,90.37,90.299,4.49999999]
[1772635969892,9.62356528,90.37,90.263,44.31467575]
[1772635969893,0.28432314,90.349,90.301,4.49999999]
[1772635970400,0.14216157,90.349,90.301,4.49999999]
[1772635970599,0.28432314,90.359,90.301,4.49999999]
[1772635970996,6.85178721,90.437,90.301,4.49999999]
[1772635970997,0.28432314,90.349,90.301,4.49999999]
[1772635971306,0.28432314,90.347,90.302,11.07395185]
[1772635971488,9.62356528,90.33,90.285,4.49999999]
[1772635971688,9.62356528,90.33,90.274,14.04987993]
[1772635971689,0.28432314,90.319,90.274,14.04987993]
[1772635972113,0.28432314,90.309,90.274,14.04987993]
[1772635972295,0.28432314,90.309,90.276,4.49999999]
[1772635972814,0.28432314,90.309,90.274,14.04987993]
[1772635973404,0.28432314,90.307,90.274,14.04987993]
[1772635973608,11.0732161,90.308,90.275,15.5772639]
[1772635973808,0.28432314,90.319,90.276,4.49999999]
[1772635974110,0.28432314,90.309,90.274,14.04987993]
[1772635974312,0.28432314,90.309,90.274,25.12722051]
[1772635974516,0.28432314,90.338,90.275,4.49999999]
[1772635974811,9.62356528,90.33,90.275,4.49999999]
[1772635975004,9.62356528,90.32,90.275,4.49999999]
[1772635975211,0.28432314,90.319,90.275,4.49999999]
[1772635975399,0.28432314,90.317,90.276,11.07714121]
[1772635975600,11.07199007,90.318,90.276,11.07714121]
[1772635975601,0.28432314,90.318,90.277,4.49999999]
[1772635975913,44.25584483,90.384,90.277,4.49999999]
[1772635975914,11.07113378,90.325,90.277,4.49999999]
[1772635976114,3.69383402,90.35,90.277,4.49999999]
[1772635976115,27.6718246,90.345,90.277,4.49999999]
[1772635976816,11.06819112,90.349,90.277,4.49999999]
[1772635976998,11.06743593,90.356,90.285,4.49999999]
[1772635977515,9.62356528,90.35,90.292,4.49999999]
[1772635977718,0.28432314,90.339,90.292,4.49999999]
[1772635978094,38.73052407,90.368,90.292,4.49999999]
[1772635978311,0.14216157,90.339,90.292,4.49999999]
[1772635978512,0.28432314,90.339,90.292,4.49999999]
[1772635978912,0.14216157,90.339,90.292,4.49999999]
[1772635979111,0.28432314,90.349,90.292,4.49999999]
[1772635979612,0.28432314,90.339,90.292,4.49999999]
[1772635979805,0.28432314,90.339,90.292,15.57514191]
[1772635980000,0.28432314,90.339,90.293,4.49999999]
[1772635980319,0.14216157,90.367,90.296,4.49999999]
[1772635980518,38.73052407,90.368,90.296,4.49999999]
[1772635980519,0.14216157,90.359,90.296,4.49999999]
[1772635981016,0.28432314,90.339,90.296,4.49999999]
[1772635981511,38.73052407,90.368,90.296,4.49999999]
[1772635981512,0.28432314,90.359,90.296,4.49999999]
[1772635981817,0.28432314,90.359,90.292,94.13897924]
[1772635981818,9.62356528,90.33,90.297,11.07456504]
[1772635982018,0.28432314,90.319,90.27,4.49999999]
[1772635982314,127.27151993,90.358,90.254,4.49999999]
[1772635982315,0.28432314,90.299,90.254,4.49999999]
[1772635982615,0.28432314,90.299,90.255,38.779015]
[1772635982814,0.28432314,90.299,90.256,4.49999999]
[1772635983024,0.28432314,90.309,90.256,4.49999999]
[1772635983611,0.28432314,90.297,90.257,11.07947306]
[1772635984108,0.28432314,90.289,90.247,4.49999999]
[1772635984509,0.28432314,90.289,90.246,11.08073061]
[1772635984510,9.62356528,90.32,90.251,3.69383402]
[1772635984804,9.62356528,90.32,90.249,3.69383402]
[1772635984805,0.28432314,90.329,90.257,4.49999999]
[1772635985008,11.06721117,90.357,90.27,0.28432314]
[1772635985330,11.06721117,90.357,90.246,11.08073061]
[1772635985331,11.06721117,90.357,90.272,4.78432313]
[1772635985503,11.06696621,90.359,90.272,4.78432313]
[1772635985706,0.28432314,90.358,90.284,4.49999999]
[1772635985901,11.06696621,90.359,90.284,4.49999999]
[1772635986106,9.62356528,90.36,90.294,4.49999999]
[1772635986307,9.62356528,90.32,90.273,11.07750933]
[1772635986508,9.62356528,90.32,90.273,38.77128266]
[1772635986509,0.28432314,90.319,90.273,38.77128266]
[1772635986923,0.28432314,90.319,90.274,4.49999999]
[1772635987712,11.35627966,90.319,90.276,4.49999999]
[1772635988225,44.26850691,90.358,90.276,4.49999999]
[1772635988226,11.3549649,90.329,90.276,4.49999999]
[1772635988427,39.03156931,90.329,90.276,4.49999999]
[1772635988718,0.28432314,90.319,90.276,4.49999999]
[1772635988917,9.62356528,90.31,90.276,4.49999999]
[1772635989111,0.28432314,90.309,90.245,4.49999999]
[1772635989521,0.28432314,90.289,90.245,4.49999999]
[1772635989725,0.28432314,90.289,90.195,44.34812668]
[1772635989726,9.62356528,90.27,90.23,11.08271657]
[1772635989925,9.62356528,90.27,90.169,9.13384326]
[1772635989926,0.28432314,90.239,90.178,4.49999999]
[1772635990230,0.28432314,90.229,90.186,11.08815128]
[1772635990408,0.28432314,90.229,90.151,44.36988586]
[1772635990409,6.84899337,90.299,90.193,4.49999999]
[1772635990611,0.28432314,90.249,90.193,4.49999999]
[1772635990812,0.28432314,90.219,90.176,16.75956601]
[1772635991820,3.69383402,90.25,90.192,4.49999999]
[1772635991821,0.28432314,90.246,90.192,4.49999999]
[1772635992417,0.28432314,90.239,90.192,4.49999999]
[1772635992719,0.28432314,90.219,90.19,11.28760094]
[1772635992930,0.28432314,90.219,90.191,11.0875808]
[1772635993102,0.28432314,90.246,90.192,4.49999999]
[1772635993509,0.28432314,90.239,90.192,4.49999999]
[1772635993708,0.28432314,90.239,90.194,4.49999999]
[1772635994110,37.31839365,90.27,90.194,4.49999999]
[1772635994330,9.62356528,90.29,90.202,4.78432313]
[1772635994534,0.28432314,90.279,90.202,4.78432313]
[1772635994705,0.28432314,90.269,90.202,4.49999999]
[1772635994912,4.82477569,90.282,90.202,4.49999999]
[1772635994913,0.28432314,90.259,90.202,4.49999999]
[1772635995220,9.62356528,90.29,90.21,0.14216157]
[1772635995530,11.0744424,90.298,90.217,4.49999999]
[1772635995709,38.7605484,90.298,90.222,4.49999999]
[1772635995910,11.0744424,90.298,90.227,4.49999999]
[1772635996104,9.62356528,90.32,90.236,4.49999999]
[1772635996330,9.62356528,90.33,90.246,4.49999999]
[1772635996532,9.62356528,90.32,90.246,4.49999999]
[1772635996830,0.14216157,90.319,90.246,4.49999999]
[1772635997127,9.62356528,90.33,90.246,4.49999999]
[1772635997326,0.28432314,90.329,90.246,4.49999999]
[1772635997730,11.07076432,90.328,90.247,127.42805853]
[1772635997906,11.07076432,90.328,90.251,4.78432313]
[1772635998312,0.28432314,90.327,90.251,4.78432313]
[1772635998526,11.07076432,90.328,90.251,4.49999999]
[1772635998527,0.28432314,90.299,90.251,4.49999999]
[1772635998733,0.28432314,90.289,90.251,4.49999999]
[1772635998918,0.28432314,90.289,90.247,11.08070074]
[1772635999119,9.62356528,90.3,90.248,4.49999999]
[1772635999426,0.28432314,90.299,90.248,4.49999999]
[1772635999813,38.73963468,90.347,90.252,8.19383401]
[1772636000129,0.28432314,90.309,90.257,4.49999999]
[1772636001213,0.28432314,90.331,90.257,4.49999999]
[1772636001409,9.62356528,90.33,90.257,4.49999999]
[1772636001733,9.62356528,90.34,90.257,4.49999999]
[1772636001914,38.73963468,90.347,90.259,4.49999999]
[1772636001915,9.62356528,90.33,90.259,4.49999999]
[1772636002310,9.62356528,90.33,90.262,4.49999999]
[1772636002514,0.28432314,90.309,90.262,4.49999999]
[1772636002736,0.28432314,90.299,90.262,4.49999999]
[1772636003036,102.7,90.338,90.262,4.49999999]
[1772636003214,9.62356528,90.37,90.266,4.49999999]
[1772636003414,27.6638497,90.371,90.286,4.49999999]
[1772636003734,9.62356528,90.36,90.288,4.49999999]
[1772636003911,0.14216157,90.359,90.29,4.49999999]
[1772636004111,9.62356528,90.37,90.297,4.49999999]
[1772636004311,9.62356528,90.36,90.297,4.49999999]
[1772636004531,38.72581018,90.379,90.297,4.49999999]
[1772636004532,0.14216157,90.349,90.297,4.49999999]
[1772636004829,0.14216157,90.349,90.252,44.32024711]